fUST/lending_fUST_20240721
["ID","MTS","AMOUNT","RATE_DAILY","PERIOD"]
[332760479,1721506262680,-500.0,0.00014794,2]
[332760480,1721506262692,-500.0,0.00014794,2]
[332760481,1721506262705,-779.56,0.00014794,2]
[332760482,1721506262720,-500.0,0.00014794,2]
[332760483,1721506262732,-500.0,0.00014794,2]
[332760484,1721506262745,-500.0,0.00014794,2]
[332760485,1721506262758,-825.74,0.00014794,2]
[332760486,1721506262771,-500.0,0.00014794,2]
[332760487,1721506262784,-652.79,0.00014794,2]
[332760488,1721506262797,-2620.27,0.00014794,2]
[332760489,1721506262809,-539.26,0.00014794,2]
[332760490,1721506262822,-1804.4,0.00014794,2]
[332760491,1721506262834,-500.0,0.00014794,2]
[332760492,1721506262846,-182.99629275,0.00014794,2]
[332760493,1721506262858,-1766.9,0.00014794,2]
[332760494,1721506262871,-2146.19,0.00014794,2]
[332760495,1721506262886,-500.0,0.00014794,2]
[332760496,1721506262897,-500.0,0.00014794,2]
[332760497,1721506262910,-500.0,0.00014794,2]
[332760498,1721506262924,-500.0,0.00014794,2]
[332760499,1721506262937,-569.67,0.00014794,2]
[332760500,1721506262952,-507.62,0.00014794,2]
[332760501,1721506262966,-500.0,0.00014794,2]
[332760502,1721506262978,-500.0,0.00014794,2]
[332760503,1721506262990,-500.0,0.00014794,2]
[332760504,1721506263003,-500.0,0.00014794,2]
[332760505,1721506263014,-2168.23,0.00014794,2]
[332760506,1721506263027,-921.42,0.00014794,2]
[332760507,1721506263039,-2063.58,0.00014794,2]
[332760508,1721506263052,-1393.65,0.00014794,2]
[332760509,1721506263064,-500.0,0.00014794,2]
[332760510,1721506263076,-500.0,0.00014794,2]
[332760511,1721506263089,-500.0,0.00014794,2]
[332760512,1721506263101,-519.9,0.00014794,2]
[332760513,1721506263113,-541.46,0.00014794,2]
[332760514,1721506263126,-500.0,0.00014794,2]
[332760515,1721506263139,-500.0,0.00014794,2]
[332760516,1721506263151,-854.68,0.00014794,2]
[332760517,1721506263163,-921.43,0.00014794,2]
[332760518,1721506263176,-721.38,0.00014794,2]
[332760519,1721506263190,-724.24,0.00014794,2]
[332760520,1721506263203,-1791.92,0.00014794,2]
[332760521,1721506263215,-653.08,0.00014794,2]
[332760522,1721506263227,-500.0,0.00014794,2]
[332760523,1721506263240,-517.33,0.00014794,2]
[332760524,1721506263253,-510.82,0.00014794,2]
[332760525,1721506263266,-500.0,0.00014794,2]
[332760526,1721506263277,-500.0,0.00014794,2]
[332760527,1721506263289,-699.32,0.00014794,2]
[332760528,1721506263303,-763.32,0.00014794,2]
[332760529,1721506263315,-500.0,0.00014794,2]
[332760530,1721506263329,-683.83,0.00014794,2]
[332760531,1721506263341,-570.59373138,0.00014794,2]
[332760532,1721506263354,-500.0,0.00014794,2]
[332760533,1721506263366,-2216.14,0.00014794,2]
[332760534,1721506263378,-9974.88,0.00014794,2]
[332760535,1721506263392,-1069.52,0.00014794,2]
[332760536,1721506263404,-1566.01,0.00014794,2]
[332760537,1721506263417,-3824.39,0.00014794,2]
[332760538,1721506263429,-500.0,0.00014794,2]
[332760539,1721506263441,-601.56,0.00014794,2]
[332760540,1721506263453,-1003.63,0.00014794,2]
[332760541,1721506263465,-2356.17,0.00014794,2]
[332760542,1721506263479,-2207.67,0.00014794,2]
[332760543,1721506263491,-500.0,0.00014794,2]
[332760544,1721506263502,-4640.9,0.00014794,2]
[332760545,1721506263514,-737.43,0.00014794,2]
[332760546,1721506263526,-5614.66,0.00014794,2]
[332760547,1721506263539,-616.11,0.00014794,2]
[332760548,1721506263552,-2074.95,0.00014794,2]
[332760549,1721506263563,-626.98,0.00014794,2]
[332760550,1721506263572,-696.35,0.00014794,2]
[332760551,1721506263581,-1193.56,0.00014794,2]
[332760552,1721506263590,-151.0,0.00014794,2]
[332760553,1721506263601,-1357.75,0.00014794,2]
[332760554,1721506263611,-500.0,0.00014794,2]
[332760555,1721506263621,-2413.95,0.00014794,2]
[332760556,1721506263630,-1278.57,0.00014794,2]
[332760557,1721506263640,-500.0,0.00014794,2]
[332760558,1721506263649,-500.0,0.00014794,2]
[332760559,1721506263659,-500.0,0.00014794,2]
[332760560,1721506263669,-500.0,0.00014794,2]
[332760561,1721506263679,-500.0,0.00014794,2]
[332760562,1721506263688,-500.0,0.00014794,2]
[332760563,1721506263698,-2479.41,0.00014794,2]
[332760564,1721506263708,-3568.54,0.00014794,2]
[332760565,1721506263718,-653.69,0.00014794,2]
[332760566,1721506263728,-653.11,0.00014794,2]
[332760567,1721506263737,-596.66,0.00014794,2]
[332760568,1721506263747,-591.95,0.00014794,2]
[332760569,1721506263757,-3611.41,0.00014794,2]
[332760570,1721506263767,-500.0,0.00014794,2]
[332760571,1721506263776,-1615.36,0.00014794,2]
[332760572,1721506263787,-2182.76,0.00014794,2]
[332760573,1721506263796,-1876.24,0.00014794,2]
[332760574,1721506263806,-922.66,0.00014794,2]
[332760575,1721506263815,-647.58,0.00014794,2]
[332760576,1721506263825,-630.5,0.00014794,2]
[332760577,1721506263834,-874.33,0.00014794,2]
[332760578,1721506263844,-972.5,0.00014794,2]
[332760579,1721506263854,-9525.09,0.00014794,2]
[332760580,1721506263863,-500.0,0.00014794,2]
[332760581,1721506263875,-438.02356023,0.00014794,2]
[332760582,1721506263886,-500.0,0.00014794,2]
[332760583,1721506263896,-500.0,0.00014794,2]
[332760584,1721506263905,-500.0,0.00014794,2]
[332760585,1721506263917,-2915.71,0.00014794,2]
[332760586,1721506263927,-500.0,0.00014794,2]
[332760587,1721506263937,-500.0,0.00014794,2]
[332760588,1721506263947,-660.13,0.00014794,2]
[332760589,1721506263958,-500.0,0.00014794,2]
[332760590,1721506263967,-500.0,0.00014794,2]
[332760591,1721506263977,-18390.94,0.00014794,2]
[332760592,1721506263986,-505.99,0.00014794,2]
[332760593,1721506263996,-3666.66,0.00014794,2]
[332760594,1721506264006,-2974.58,0.00014794,2]
[332760595,1721506264015,-151.0,0.00014794,2]
[332760596,1721506264025,-500.0,0.00014794,2]
[332760597,1721506264034,-1139.9,0.00014794,2]
[332760598,1721506264044,-235.854336,0.00014794,2]
[332760599,1721506264054,-2007.77,0.00014794,2]
[332760600,1721506264063,-2230.68,0.00014794,2]
[332760601,1721506264073,-3008.42,0.00014794,2]
[332760602,1721506264419,-5451.22,0.00014794,2]
[332760603,1721506264439,-650.96,0.00014794,2]
[332760604,1721506264456,-664.55,0.00014794,2]
[332760605,1721506264474,-500.0,0.00014794,2]
[332760606,1721506264488,-1424.47,0.00014794,2]
[332760607,1721506264498,-500.0,0.00014794,2]
[332760608,1721506264507,-374.40785984,0.00014794,2]
[332760609,1721506264516,-500.0,0.00014794,2]
[332760610,1721506264526,-4967.36,0.00014794,2]
[332760611,1721506264535,-500.0,0.00014794,2]
[332760612,1721506264544,-3110.77,0.00014794,2]
[332760613,1721506264553,-4593.9,0.00014794,2]
[332760614,1721506264562,-2600.56,0.00014794,2]
[332760615,1721506264572,-1077.09,0.00014794,2]
[332760616,1721506264581,-7347.6,0.00014794,2]
[332760617,1721506264590,-512.59,0.00014794,2]
[332760618,1721506264600,-500.0,0.00014794,2]
[332760619,1721506264609,-500.0,0.00014794,2]
[332760620,1721506264618,-585.32,0.00014794,2]
[332760621,1721506264629,-774.02,0.00014794,2]
[332760622,1721506264639,-500.0,0.00014794,2]
[332760623,1721506264649,-11096.32,0.00014794,2]
[332760624,1721506264659,-500.0,0.00014794,2]
[332760625,1721506264670,-694.69,0.00014794,2]
[332760626,1721506264681,-1940.47,0.00014794,2]
[332760627,1721506264690,-1320.32,0.00014794,2]
[332760628,1721506264700,-573.91,0.00014794,2]
[332760629,1721506264710,-2632.34,0.00014794,2]
[332760630,1721506264722,-1034.45,0.00014794,2]
[332760631,1721506264731,-500.0,0.00014794,2]
[332760632,1721506264740,-668.743409,0.00014794,2]
[332760633,1721506264750,-769.84,0.00014794,2]
[332760634,1721506264760,-668.743409,0.00014794,2]
[332760635,1721506264771,-9556.66,0.00014794,2]
[332760636,1721506264780,-3096.48,0.00014794,2]
[332760637,1721506264790,-500.0,0.00014794,2]
[332760638,1721506264801,-500.0,0.00014794,2]
[332760639,1721506264810,-502.87,0.00014794,2]
[332760640,1721506264819,-819.96,0.00014794,2]
[332760641,1721506264829,-500.0,0.00014794,2]
[332760642,1721506264839,-3023.06,0.00014794,2]
[332760643,1721506264849,-500.0,0.00014794,2]
[332760644,1721506264860,-500.0,0.00014794,2]
[332760645,1721506264870,-500.0,0.00014794,2]
[332760646,1721506264883,-202.63,0.00014794,2]
[332760647,1721506264892,-1149.23,0.00014794,2]
[332760648,1721506264901,-1214.52,0.00014794,2]
[332760649,1721506264912,-500.0,0.00014794,2]
[332760650,1721506264922,-500.0,0.00014794,2]
[332760651,1721506264931,-500.0,0.00014794,2]
[332760652,1721506264940,-500.0,0.00014794,2]
[332760653,1721506264950,-500.0,0.00014794,2]
[332760654,1721506264961,-848.62,0.00014794,2]
[332760655,1721506264973,-1494.97,0.00014794,2]
[332760656,1721506264983,-2011.6,0.00014794,2]
[332760657,1721506264992,-1089.64,0.00014794,2]
[332760658,1721506265001,-1294.05,0.00014794,2]
[332760659,1721506265011,-575.38,0.00014794,2]
[332760660,1721506265019,-14274.59,0.00014794,2]
[332760661,1721506265030,-500.0,0.00014794,2]
[332760662,1721506265041,-902.47,0.00014794,2]
[332760663,1721506265050,-1276.73,0.00014794,2]
[332760664,1721506265059,-7017.93443182,0.00014794,2]
[332760665,1721506265887,-500.0,0.00013698,2]
[332760666,1721506265897,-500.0,0.00013698,2]
[332760667,1721506265907,-27513.31556818,0.00014794,2]
[332760668,1721506265916,-942.04,0.00014794,2]
[332760669,1721506265927,-500.0,0.00014794,2]
[332760670,1721506265936,-1528.42,0.00014794,2]
[332760671,1721506265946,-500.0,0.00014794,2]
[332760672,1721506265958,-500.0,0.00014794,2]
[332760673,1721506265968,-533.02,0.00014794,2]
[332760674,1721506265977,-500.0,0.00014794,2]
[332760675,1721506265986,-997.36,0.00014794,2]
[332760676,1721506265996,-2180.31,0.00014794,2]
[332760677,1721506266005,-1611.73,0.00014794,2]
[332760678,1721506266014,-500.0,0.00014794,2]
[332760679,1721506266023,-500.0,0.00014794,2]
[332760680,1721506266034,-500.0,0.00014794,2]
[332760681,1721506266044,-807.74,0.00014794,2]
[332760682,1721506266053,-500.0,0.00014794,2]
[332760683,1721506266062,-2554.46,0.00014794,2]
[332760684,1721506266071,-514.71,0.00014794,2]
[332760685,1721506266081,-3088.33,0.00014794,2]
[332760686,1721506266090,-2477.78,0.00014794,2]
[332760687,1721506266100,-269.65233102,0.00014794,2]
[332760688,1721506266109,-753.14,0.00014794,2]
[332760689,1721506266118,-500.0,0.00014794,2]
[332760690,1721506266127,-985.43,0.00014794,2]
[332760691,1721506266136,-500.0,0.00014794,2]
[332760692,1721506266146,-500.0,0.00014794,2]
[332760693,1721506266155,-500.0,0.00014794,2]
[332760694,1721506266165,-500.0,0.00014794,2]
[332760695,1721506266176,-754.8811585,0.00014794,2]
[332760698,1721506394774,3000.0,0.000225,30]
[332760700,1721506529760,9866.57,0.0001025,2]
[332760701,1721506556919,161.89665668,0.0001025,2]
[332760703,1721506663239,248.75711548,9.999e-05,2]
[332760704,1721506783295,248.75711548,9.999e-05,2]
[332760705,1721506813249,248.75711548,9.999e-05,2]
[332760708,1721506932349,375.39217735,9.999e-05,2]
[332760709,1721506933255,248.46822504,9.999e-05,2]
[332760710,1721506996283,3000.0,0.000225,30]
[332760712,1721507200153,-1020.27575252,0.00010854,2]
[332760724,1721507417832,561.4272298,9.999e-05,2]
[332760755,1721507431949,-300.0,0.00010954,2]
[332760756,1721507431961,-82399.02898176,0.00010955,2]
[332760797,1721507437781,-19072.2715819,0.00011142,2]
[332760798,1721507437791,-420.0,0.00012049,2]
[332760801,1721507437801,-548.41892394,0.00012061,2]
[332760802,1721507437811,-500.61107229,0.00012119,2]
[332760804,1721507437821,-548.4189239,0.00012445,2]
[332760806,1721507437831,-548.4189239,0.0001283,2]
[332760808,1721507437842,-548.4189239,0.00013214,2]
[332760810,1721507437851,-587.0,0.00013254,2]
[332760812,1721507437861,-548.4189239,0.00013598,2]
[332760814,1721507437870,-2106.82215837,0.00013598,2]
[332760816,1721507437880,-2000.0,0.00013598,2]
[332760818,1721507437890,-293.8031846,0.00013671,2]
[332760820,1721507437899,-353364.883008,0.00013688,2]
[332760822,1721507437909,-500.0,0.00013698,2]
[332760825,1721507437921,-387.79553029,0.00013698,2]
[332760827,1721507437932,-500.0,0.00013698,2]
[332760829,1721507437945,-500.0,0.00013698,2]
[332760831,1721507437956,-500.0,0.00013698,2]
[332760833,1721507437966,-500.0,0.00013698,2]
[332760835,1721507437977,-210.11285746,0.00013698,2]
[332760837,1721507437987,-500.0,0.00013698,2]
[332760839,1721507437997,-500.0,0.00013698,2]
[332760840,1721507438009,-500.0,0.00013698,2]
[332760841,1721507438019,-500.0,0.00013698,2]
[332760842,1721507438030,-500.0,0.00013698,2]
[332760844,1721507438040,-500.0,0.00013698,2]
[332760845,1721507438051,-500.0,0.00013698,2]
[332760847,1721507438061,-500.0,0.00013698,2]
[332760849,1721507438072,-500.0,0.00013698,2]
[332760851,1721507438084,-500.0,0.00013698,2]
[332760853,1721507438094,-500.0,0.00013698,2]
[332760855,1721507438103,-500.0,0.00013698,2]
[332760857,1721507438113,-500.0,0.00013698,2]
[332760859,1721507438124,-500.0,0.00013698,2]
[332760861,1721507438133,-500.0,0.00013698,2]
[332760863,1721507438143,-500.0,0.00013698,2]
[332760865,1721507438153,-480.33910678,0.00013698,2]
[332760867,1721507438163,-500.0,0.00013698,2]
[332760869,1721507438172,-500.0,0.00013698,2]
[332760871,1721507438182,-500.0,0.00013698,2]
[332760873,1721507438191,-500.0,0.00013698,2]
[332760875,1721507438200,-500.0,0.00013698,2]
[332760877,1721507438210,-500.0,0.00013698,2]
[332760879,1721507438219,-500.0,0.00013698,2]
[332760881,1721507438228,-500.0,0.00013698,2]
[332760883,1721507438238,-500.0,0.00013698,2]
[332760885,1721507438247,-500.0,0.00013698,2]
[332760887,1721507438257,-621.57762886,0.00013698,2]
[332760889,1721507438270,-500.0,0.00013698,2]
[332760891,1721507438279,-500.0,0.00013698,2]
[332760892,1721507438289,-500.0,0.00013698,2]
[332760894,1721507438298,-500.0,0.00013698,2]
[332760896,1721507438308,-500.0,0.00013698,2]
[332760898,1721507438318,-163.69606826,0.00013698,2]
[332760900,1721507438327,-500.0,0.00013698,2]
[332760902,1721507438337,-500.0,0.00013698,2]
[332760904,1721507438348,-348.77204299,0.00013698,2]
[332760906,1721507438358,-500.0,0.00013698,2]
[332760908,1721507438368,-500.0,0.00013698,2]
[332760909,1721507438381,-524.73135772,0.00013698,2]
[332760910,1721507438391,-856.09,0.00013698,2]
[332760911,1721507438400,-500.0,0.00013698,2]
[332760912,1721507438411,-508.09294628,0.00013698,2]
[332760913,1721507438421,-500.0,0.00013698,2]
[332760914,1721507438430,-500.0,0.00013698,2]
[332760915,1721507438439,-500.0,0.00013698,2]
[332760916,1721507438449,-548.2092026,0.00013698,2]
[332760917,1721507438459,-812.17,0.00013698,2]
[332760918,1721507438468,-548.75997375,0.00013698,2]
[332760919,1721507438478,-500.3265989,0.00013698,2]
[332760920,1721507438487,-500.0,0.00013698,2]
[332760921,1721507438497,-500.0,0.00013698,2]
[332760922,1721507438507,-501.77387035,0.00013698,2]
[332760923,1721507438516,-500.0,0.00013698,2]
[332760924,1721507438525,-933.32,0.00013698,2]
[332760925,1721507438536,-500.0,0.00013698,2]
[332760926,1721507438545,-500.0,0.00013698,2]
[332760927,1721507438555,-500.0,0.00013698,2]
[332760928,1721507438564,-456.093618,0.00013698,2]
[332760929,1721507438794,-500.0,0.00013698,2]
[332760930,1721507438814,-500.0,0.00013698,2]
[332760931,1721507438825,-778.5,0.00013698,2]
[332760932,1721507438835,-571.89745073,0.00013698,2]
[332760933,1721507438845,-1043.63,0.00013698,2]
[332760934,1721507438855,-500.0,0.00013698,2]
[332760935,1721507438864,-500.0,0.00013698,2]
[332760936,1721507438876,-500.0,0.00013698,2]
[332760937,1721507438885,-500.0,0.00013698,2]
[332760938,1721507438894,-500.0,0.00013698,2]
[332760939,1721507438904,-500.0,0.00013698,2]
[332760940,1721507438913,-500.0,0.00013698,2]
[332760941,1721507438922,-500.0,0.00013698,2]
[332760942,1721507438931,-500.0,0.00013698,2]
[332760943,1721507438941,-500.0,0.00013698,2]
[332760944,1721507438950,-500.0,0.00013698,2]
[332760945,1721507438959,-500.0,0.00013698,2]
[332760946,1721507438968,-500.0,0.00013698,2]
[332760947,1721507438978,-500.0,0.00013698,2]
[332760948,1721507438988,-500.0,0.00013698,2]
[332760949,1721507438997,-500.0,0.00013698,2]
[332760950,1721507439006,-615.43055674,0.00013698,2]
[332760951,1721507439015,-500.0,0.00013698,2]
[332760952,1721507439024,-500.7278879,0.00013698,2]
[332760953,1721507439034,-500.0,0.00013698,2]
[332760954,1721507439043,-579.52,0.00013698,2]
[332760955,1721507439052,-500.0,0.00013698,2]
[332760956,1721507439061,-500.0,0.00013698,2]
[332760957,1721507439070,-518.49437446,0.00013698,2]
[332760958,1721507439079,-669.97,0.00013698,2]
[332760959,1721507439089,-500.0,0.00013698,2]
[332760960,1721507439099,-503.08189526,0.00013698,2]
[332760961,1721507439109,-500.0,0.00013698,2]
[332760962,1721507439118,-500.0,0.00013698,2]
[332760963,1721507439127,-500.0,0.00013698,2]
[332760964,1721507439137,-502.86855471,0.00013698,2]
[332760965,1721507439147,-500.0,0.00013698,2]
[332760966,1721507439156,-500.0,0.00013698,2]
[332760967,1721507439164,-545.29737027,0.00013698,2]
[332760968,1721507439174,-500.0,0.00013698,2]
[332760969,1721507439184,-500.0,0.00013698,2]
[332760970,1721507439194,-500.0,0.00013698,2]
[332760971,1721507439204,-500.0,0.00013698,2]
[332760972,1721507439213,-502.26881878,0.00013698,2]
[332760973,1721507439222,-500.0,0.00013698,2]
[332760974,1721507439232,-526.28,0.00013698,2]
[332760975,1721507439241,-500.0,0.00013698,2]
[332760976,1721507439250,-500.0,0.00013698,2]
[332760977,1721507439259,-1010.99,0.00013698,2]
[332760978,1721507439269,-500.0,0.00013698,2]
[332760979,1721507439278,-500.0,0.00013698,2]
[332760981,1721507439288,-500.0,0.00013698,2]
[332760983,1721507439297,-500.0,0.00013698,2]
[332760985,1721507439307,-500.0,0.00013698,2]
[332760986,1721507439316,-500.0,0.00013698,2]
[332760987,1721507439326,-500.0,0.00013698,2]
[332760989,1721507439335,-500.0,0.00013698,2]
[332760990,1721507439346,-500.0,0.00013698,2]
[332760991,1721507439355,-940.75,0.00013698,2]
[332760992,1721507439364,-500.0,0.00013698,2]
[332760993,1721507439374,-500.0,0.00013698,2]
[332760994,1721507439383,-500.0,0.00013698,2]
[332760995,1721507439392,-501.3438523,0.00013698,2]
[332760996,1721507439402,-500.0,0.00013698,2]
[332760997,1721507439411,-500.0,0.00013698,2]
[332760998,1721507439422,-500.0,0.00013698,2]
[332760999,1721507439431,-500.0,0.00013698,2]
[332761000,1721507439440,-500.0,0.00013698,2]
[332761001,1721507439450,-500.0,0.00013698,2]
[332761002,1721507439459,-500.0,0.00013698,2]
[332761003,1721507439468,-500.0,0.00013698,2]
[332761004,1721507439478,-500.0,0.00013698,2]
[332761005,1721507439487,-500.0,0.00013698,2]
[332761006,1721507439497,-500.0,0.00013698,2]
[332761008,1721507439507,-659.36,0.00013698,2]
[332761009,1721507439516,-500.0,0.00013698,2]
[332761010,1721507439525,-500.0,0.00013698,2]
[332761011,1721507439535,-500.0,0.00013698,2]
[332761012,1721507439544,-598.5,0.00013698,2]
[332761013,1721507439554,-500.0,0.00013698,2]
[332761014,1721507439563,-646.05085239,0.00013698,2]
[332761016,1721507439573,-500.0,0.00013698,2]
[332761018,1721507439582,-500.0,0.00013698,2]
[332761020,1721507439592,-500.0,0.00013698,2]
[332761022,1721507439601,-500.0,0.00013698,2]
[332761024,1721507439610,-500.0,0.00013698,2]
[332761026,1721507439620,-500.0,0.00013698,2]
[332761028,1721507439630,-500.0,0.00013698,2]
[332761030,1721507439639,-500.0,0.00013698,2]
[332761032,1721507439649,-500.0,0.00013698,2]
[332761034,1721507439658,-500.0,0.00013698,2]
[332761036,1721507439667,-243.42190071,0.00013698,2]
[332761038,1721507439676,-601.4404759,0.00013698,2]
[332761040,1721507439686,-500.0,0.00013698,2]
[332761042,1721507439695,-500.0,0.00013698,2]
[332761044,1721507439703,-500.0,0.00013698,2]
[332761046,1721507439712,-505.46201646,0.00013698,2]
[332761048,1721507439721,-500.0,0.00013698,2]
[332761050,1721507439731,-508.40747236,0.00013698,2]
[332761052,1721507439741,-500.0,0.00013698,2]
[332761053,1721507439750,-942.25,0.00013698,2]
[332761055,1721507439760,-500.0,0.00013698,2]
[332761057,1721507439770,-505.79508747,0.00013698,2]
[332761059,1721507439779,-500.0,0.00013698,2]
[332761061,1721507439788,-535.13087164,0.00013698,2]
[332761063,1721507439797,-500.0,0.00013698,2]
[332761065,1721507439807,-500.0,0.00013698,2]
[332761067,1721507439816,-500.0,0.00013698,2]
[332761069,1721507439825,-500.0,0.00013698,2]
[332761071,1721507439835,-500.0,0.00013698,2]
[332761073,1721507439844,-500.0,0.00013698,2]
[332761075,1721507439853,-276.89937302,0.00013698,2]
[332761077,1721507439862,-211.01050047,0.00013698,2]
[332761079,1721507439872,-150.0,0.00013698,2]
[332761081,1721507439881,-500.0,0.00013698,2]
[332761083,1721507439890,-500.0,0.00013698,2]
[332761085,1721507439900,-500.0,0.00013698,2]
[332761087,1721507439909,-500.0,0.00013698,2]
[332761088,1721507439919,-191.2377236,0.00013698,2]
[332761091,1721507439930,-500.0,0.00013698,2]
[332761093,1721507439941,-261.30972445,0.00013698,2]
[332761094,1721507439950,-500.0,0.00013698,2]
[332761096,1721507439959,-507.62,0.00013698,2]
[332761098,1721507439968,-500.0,0.00013698,2]
[332761100,1721507439978,-500.0,0.00013698,2]
[332761102,1721507439988,-484.1569262,0.00013698,2]
[332761104,1721507439997,-673.62,0.00013698,2]
[332761106,1721507440007,-635.03105591,0.00013698,2]
[332761108,1721507440016,-500.0,0.00013698,2]
[332761110,1721507440025,-500.0,0.00013698,2]
[332761112,1721507440035,-500.0,0.00013698,2]
[332761113,1721507440044,-503.98,0.00013698,2]
[332761115,1721507440053,-193.47418578,0.00013698,2]
[332761117,1721507440063,-500.0,0.00013698,2]
[332761119,1721507440073,-482.34424015,0.00013698,2]
[332761122,1721507440083,-500.0,0.00013698,2]
[332761123,1721507440092,-500.0,0.00013698,2]
[332761125,1721507440101,-500.0,0.00013698,2]
[332761127,1721507440111,-500.0,0.00013698,2]
[332761129,1721507440120,-500.0,0.00013698,2]
[332761131,1721507440130,-500.0,0.00013698,2]
[332761133,1721507440139,-500.0,0.00013698,2]
[332761135,1721507440148,-500.0,0.00013698,2]
[332761137,1721507440157,-500.0,0.00013698,2]
[332761139,1721507440166,-500.0,0.00013698,2]
[332761141,1721507440175,-500.0,0.00013698,2]
[332761143,1721507440185,-270.43895219,0.00013698,2]
[332761145,1721507440195,-500.0,0.00013698,2]
[332761147,1721507440203,-554.99193017,0.00013698,2]
[332761149,1721507440213,-500.0,0.00013698,2]
[332761151,1721507440222,-500.0,0.00013698,2]
[332761153,1721507440231,-2207.67,0.00013698,2]
[332761155,1721507440240,-500.0,0.00013698,2]
[332761157,1721507440250,-500.0,0.00013698,2]
[332761159,1721507440260,-500.0,0.00013698,2]
[332761161,1721507440272,-663.18,0.00013698,2]
[332761163,1721507440281,-500.0,0.00013698,2]
[332761165,1721507440291,-500.0,0.00013698,2]
[332761166,1721507440300,-500.0,0.00013698,2]
[332761168,1721507440310,-616.11,0.00013698,2]
[332761171,1721507440321,-500.0,0.00013698,2]
[332761173,1721507440331,-500.0,0.00013698,2]
[332761175,1721507440341,-500.55636249,0.00013698,2]
[332761176,1721507440350,-500.0,0.00013698,2]
[332761179,1721507440360,-500.0,0.00013698,2]
[332761181,1721507440370,-610.06,0.00013698,2]
[332761183,1721507440379,-500.0,0.00013698,2]
[332761184,1721507440389,-500.0,0.00013698,2]
[332761185,1721507440398,-500.0,0.00013698,2]
[332761186,1721507440407,-513.30695711,0.00013698,2]
[332761187,1721507440416,-500.0,0.00013698,2]
[332761188,1721507440426,-500.0,0.00013698,2]
[332761189,1721507440436,-500.0,0.00013698,2]
[332761190,1721507440446,-500.0,0.00013698,2]
[332761191,1721507440455,-500.0,0.00013698,2]
[332761192,1721507440465,-500.0,0.00013698,2]
[332761193,1721507440475,-500.0,0.00013698,2]
[332761194,1721507440484,-683.83,0.00013698,2]
[332761195,1721507440494,-500.0,0.00013698,2]
[332761196,1721507440503,-500.0,0.00013698,2]
[332761197,1721507440512,-500.0,0.00013698,2]
[332761198,1721507440522,-500.0,0.00013698,2]
[332761199,1721507440531,-782.62,0.00013698,2]
[332761200,1721507440541,-500.0,0.00013698,2]
[332761201,1721507440550,-517.33,0.00013698,2]
[332761202,1721507440559,-3151.21,0.00013698,2]
[332761203,1721507440569,-258.57234386,0.00013698,2]
[332761204,1721507440578,-505.11920375,0.00013698,2]
[332761205,1721507440588,-609.52367989,0.00013698,2]
[332761206,1721507440598,-500.0,0.00013698,2]
[332761207,1721507440607,-840.58,0.00013698,2]